bitfinex-derivatives/quotes_SOLF0:USTF0_20260220
["timestamp","ask_amount","ask_price","bid_price","bid_amount"]
[1771616186138,10.6169,84.796,84.751,8.75533188]
[1771616186736,3.56039526,84.81,84.751,8.75533188]
[1771616187838,10.6158,84.804,84.751,8.75533188]
[1771616190441,10.6163,84.801,84.751,8.75533188]
[1771616190636,3.56039526,84.8,84.751,8.75533188]
[1771616191240,10.6165,84.799,84.751,8.75533188]
[1771616192034,18.13132134,84.79,84.751,8.75533188]
[1771616192240,3.95322608,84.789,84.737,8.75533188]
[1771616193638,10.6181,84.786,84.737,8.75533188]
[1771616194438,3.56039526,84.78,84.737,8.75533188]
[1771616194644,10.6181,84.786,84.737,8.75533188]
[1771616197948,10.6181,84.786,84.741,9.28986481]
[1771616198541,10.6181,84.786,84.75,3.56039526]
[1771616198838,10.6181,84.786,84.743,9.28986481]
[1771616202146,10.6181,84.786,84.714,22.03123766]
[1771616202147,3.56039526,84.82,84.771,9.28986481]
[1771616202349,9.50513252,84.819,84.771,9.28986481]
[1771616203652,10.6141,84.818,84.771,9.28986481]
[1771616203855,9.50513252,84.819,84.771,9.28986481]
[1771616204660,10.6149,84.812,84.771,9.28986481]
[1771616205552,3.56039526,84.83,84.77,3.56039526]
[1771616205553,10.6139,84.82,84.775,9.28986481]
[1771616205759,10.6139,84.82,84.709,165.3194]
[1771616205760,9.50513252,84.859,84.8,3.56039526]
[1771616205959,9.50513252,84.873,84.821,9.28986481]
[1771616206260,9.50513252,84.869,84.821,9.28986481]
[1771616206453,9.50513252,84.859,84.807,9.28986481]
[1771616206651,9.50513252,84.846,84.791,9.28986481]
[1771616207564,10.6109,84.844,84.8,3.56039526]
[1771616209262,9.50513252,84.846,84.8,3.56039526]
[1771616211561,9.50513252,84.839,84.781,19.90856481]
[1771616211866,9.50513252,84.839,84.782,9.28986481]
[1771616212664,3.56039526,84.83,84.782,9.28986481]
[1771616212967,9.50513252,84.829,84.782,9.28986481]
[1771616213170,9.50513252,84.819,84.767,9.28986481]
[1771616213368,9.50513252,84.819,84.771,9.28986481]
[1771616214765,3.56039526,84.81,84.771,9.28986481]
[1771616215373,9.50513252,84.834,84.781,9.28986481]
[1771616216762,9.50513252,84.83,84.781,9.28986481]
[1771616220476,9.50513252,84.849,84.8,3.56039526]
[1771616221276,9.50513252,84.849,84.81,3.56039526]
[1771616221475,9.50513252,84.849,84.745,35.43]
[1771616221476,9.50513252,84.869,84.82,3.56039526]
[1771616221774,9.50513252,84.869,84.82,12.85026007]
[1771616221975,9.50513252,84.869,84.821,9.28986481]
[1771616222376,9.50513252,84.859,84.81,3.56039526]
[1771616222972,9.50513252,84.859,84.81,12.85026007]
[1771616223174,9.50513252,84.859,84.811,9.28986481]
[1771616223678,20.11413252,84.859,84.811,9.28986481]
[1771616224079,9.50513252,84.858,84.811,9.28986481]
[1771616225669,9.50513252,84.856,84.811,9.28986481]
[1771616226876,9.59159764,84.852,84.81,3.56039526]
[1771616227082,9.59159764,84.852,84.79,10.6175]
[1771616227083,9.59159764,84.839,84.78,12.83548471]
[1771616227279,9.59159764,84.839,84.781,9.66729734]
[1771616227883,19.72649909,84.835,84.781,9.66729734]
[1771616228083,9.11449909,84.834,84.781,9.66729734]
[1771616228484,10.6123,84.833,84.783,20.28569734]
[1771616228686,10.6123,84.833,84.784,9.66729734]
[1771616230386,10.6123,84.833,84.79,3.55951974]
[1771616231484,10.6123,84.833,84.79,13.22681708]
[1771616231681,9.11449909,84.834,84.791,9.66729734]
[1771616231879,10.6114,84.84,84.791,9.66729734]
[1771616231880,10.6114,84.84,84.8,3.55951974]
[1771616232186,10.6114,84.84,84.801,9.66729734]
[1771616232587,19.72499909,84.847,84.801,9.66729734]
[1771616233682,10.6112,84.841,84.801,9.66729734]
[1771616234287,9.11449909,84.846,84.801,9.66729734]
[1771616235087,10.6095,84.855,84.801,9.66729734]
[1771616235488,10.61,84.851,84.801,9.66729734]
[1771616235891,9.11449909,84.85,84.801,9.66729734]
[1771616236092,9.11449909,84.84,84.801,9.66729734]
[1771616239091,10.6095,84.855,84.82,3.55951974]
[1771616239293,10.6095,84.855,84.821,9.66729734]
[1771616240396,10.6087,84.862,84.821,9.66729734]
[1771616241095,10.6095,84.855,84.821,9.66729734]
[1771616242395,10.6086,84.863,84.821,9.66729734]
[1771616243897,10.6093,84.857,84.821,9.66729734]
[1771616244197,9.11449909,84.868,84.821,9.66729734]
[1771616244698,10.93078173,84.906,84.821,9.66729734]
[1771616244699,9.11449909,84.866,84.821,9.66729734]
[1771616245696,9.11449909,84.863,84.821,9.66729734]
[1771616249199,10.6086,84.862,84.821,9.66729734]
[1771616249398,19.72309909,84.862,84.821,9.66729734]
[1771616251103,9.11449909,84.878,84.83,3.55951974]
[1771616251311,9.11449909,84.889,84.831,9.66729734]
[1771616252611,9.11449909,84.875,84.824,10.6133]
[1771616253706,9.11449909,84.871,84.824,10.6133]
[1771616254006,9.11449909,84.871,84.825,9.66729734]
[1771616256610,10.6076,84.87,84.831,9.66729734]
[1771616264714,9.72128955,84.866,84.818,9.20244235]
[1771616265313,9.72128955,84.862,84.819,10.614]
[1771616266129,10.6088,84.861,84.819,10.614]
[1771616266426,20.33008955,84.861,84.819,10.614]
[1771616267014,9.72128955,84.855,84.812,10.6147]
[1771616267618,10.6098,84.853,84.814,9.20244235]
[1771616267922,9.72128955,84.839,84.791,9.20244235]
[1771616268320,10.6108,84.845,84.801,9.20244235]
[1771616269120,10.6115,84.839,84.801,9.20244235]
[1771616269423,10.6115,84.839,84.8,3.55951974]
[1771616269424,9.72128955,84.838,84.791,9.20244235]
[1771616269923,20.33378955,84.831,84.791,9.20244235]
[1771616272824,9.72128955,84.829,84.778,9.20244235]
[1771616273023,3.55951974,84.84,84.791,9.20244235]
[1771616273224,10.6117,84.838,84.791,9.20244235]
[1771616273424,10.6117,84.838,84.8,3.55951974]
[1771616274530,9.72128955,84.837,84.791,9.20244235]
[1771616275333,9.72128955,84.835,84.791,9.20244235]
[1771616277429,9.72128955,84.829,84.78,12.76196209]
[1771616277730,9.72128955,84.829,84.781,9.20244235]
[1771616278829,9.72128955,84.825,84.781,9.20244235]
[1771616279033,3.55951974,84.82,84.781,9.20244235]
[1771616279224,9.72128955,84.825,84.781,9.20244235]
[1771616280036,9.72128955,84.825,84.773,10.6196]
[1771616280234,9.72128955,84.819,84.773,10.6196]
[1771616280529,9.72128955,84.819,84.769,9.20244235]
[1771616280530,9.72128955,84.809,84.757,9.20244235]
[1771616280736,9.72128955,84.822,84.771,9.20244235]
[1771616280929,13.28080929,84.83,84.771,9.20244235]
[1771616281128,9.72128955,84.829,84.771,9.20244235]
[1771616281733,20.33408955,84.829,84.781,9.20244235]
[1771616281939,9.72128955,84.828,84.781,9.20244235]
[1771616282736,10.6131,84.826,84.781,9.20244235]
[1771616282940,20.33438955,84.826,84.781,9.20244235]
[1771616283142,9.72128955,84.825,84.781,9.20244235]
[1771616284743,9.72128955,84.825,84.783,9.20244235]
[1771616285639,10.6119,84.836,84.791,9.20244235]
[1771616285945,9.72128955,84.851,84.801,9.20244235]
[1771616286544,10.6106,84.847,84.801,9.20244235]
[1771616287440,9.72128955,84.851,84.811,9.35003197]
[1771616287641,9.06376206,84.864,84.811,9.35003197]
[1771616287947,9.06376206,84.864,84.821,9.35003197]
[1771616288641,9.06376206,84.864,84.82,3.55951974]
[1771616288642,9.06376206,84.859,84.806,9.35003197]
[1771616288849,9.06376206,84.849,84.806,9.35003197]
[1771616289443,9.06376206,84.839,84.791,9.35003197]
[1771616290041,9.06376206,84.839,84.795,9.35003197]
[1771616291444,10.6116,84.838,84.795,9.35003197]
[1771616292544,10.6121,84.835,84.795,9.35003197]
[1771616293242,10.613,84.827,84.782,9.35003197]
[1771616293545,9.06376206,84.826,84.782,9.35003197]
[1771616294245,9.06376206,84.826,84.784,9.35003197]
[1771616295645,9.06376206,84.826,84.785,10.6182]
[1771616295950,9.06376206,84.826,84.786,9.35003197]
[1771616297351,9.06376206,84.84,84.791,9.35003197]
[1771616297854,9.06376206,84.839,84.791,9.35003197]
[1771616299754,9.06376206,84.839,84.798,9.35003197]
[1771616307760,9.06376206,84.837,84.798,9.35003197]
[1771616309560,9.06376206,84.845,84.798,9.35003197]
[1771616310661,9.06376206,84.843,84.798,9.35003197]
[1771616310863,3.55837794,84.84,84.798,9.35003197]
[1771616311169,9.06376206,84.839,84.798,9.35003197]
[1771616312270,9.06376206,84.832,84.787,9.35003197]
[1771616313372,10.95598435,84.861,84.787,9.35003197]
[1771616313373,9.06376206,84.829,84.787,9.35003197]
[1771616313670,9.06376206,84.809,84.763,14.51029912]
[1771616313861,9.06376206,84.809,84.762,14.51029912]
[1771616314262,9.06376206,84.809,84.762,9.35003197]
[1771616314666,9.06376206,84.809,84.765,10.6206]
[1771616316568,9.06376206,84.809,84.762,9.35003197]
[1771616316974,9.06376206,84.789,84.745,9.35003197]
[1771616317370,10.6186,84.783,84.745,9.35003197]
[1771616317570,9.7714492,84.779,84.745,9.35003197]
[1771616318679,9.7714492,84.779,84.709,22.04694999]
[1771616318680,3.55837794,84.77,84.722,9.58527642]
[1771616318876,9.7714492,84.769,84.722,9.58527642]
[1771616319079,3.55837794,84.76,84.722,9.58527642]
[1771616319278,13.32982714,84.76,84.722,9.58527642]
[1771616319472,9.7714492,84.759,84.722,9.58527642]
[1771616322679,20.3931492,84.758,84.722,9.58527642]
[1771616322981,9.7714492,84.758,84.722,9.58527642]
[1771616323181,9.7714492,84.769,84.722,9.58527642]
[1771616324278,3.55837794,84.77,84.722,9.58527642]
[1771616324279,9.7714492,84.767,84.722,9.58527642]
[1771616326784,10.6194,84.776,84.722,9.58527642]
[1771616327077,10.6194,84.776,84.73,3.55837794]
[1771616327379,10.6194,84.776,84.731,9.58527642]
[1771616327584,9.7714492,84.775,84.731,9.58527642]
[1771616327988,9.7714492,84.773,84.731,9.58527642]
[1771616328376,9.7714492,84.769,84.731,9.58527642]
[1771616329487,9.7714492,84.764,84.719,9.58527642]
[1771616330684,20.3925492,84.762,84.719,9.58527642]
[1771616330989,9.7714492,84.761,84.719,9.58527642]
[1771616331580,9.7714492,84.758,84.719,9.58527642]
[1771616331887,9.7714492,84.758,84.701,9.58527642]
[1771616332088,9.7714492,84.752,84.701,9.58527642]
[1771616333489,9.7714492,84.745,84.702,10.6286]
[1771616333985,9.7714492,84.74,84.701,9.58527642]
[1771616334188,9.7714492,84.739,84.701,9.58527642]
[1771616334386,9.7714492,84.739,84.689,9.58527642]
[1771616334689,3.55837794,84.74,84.689,9.58527642]
[1771616334690,9.7714492,84.73,84.689,9.58527642]
[1771616334886,13.32982714,84.73,84.689,9.58527642]
[1771616335086,9.7714492,84.73,84.689,9.58527642]
[1771616335686,10.6257,84.725,84.689,9.58527642]
[1771616335989,9.7714492,84.73,84.689,9.58527642]
[1771616337285,9.7714492,84.73,84.691,9.58527642]
[1771616339688,10.6236,84.742,84.701,9.58527642]
[1771616340593,10.6239,84.74,84.701,9.58527642]
[1771616342190,9.7714492,84.741,84.701,9.58527642]
[1771616343193,35.43,84.777,84.7,3.55837794]
[1771616343194,9.7714492,84.755,84.704,9.58527642]
[1771616343393,9.7714492,84.755,84.711,9.58527642]
[1771616344696,9.7714492,84.751,84.711,9.58527642]
[1771616347595,20.3939492,84.751,84.711,9.58527642]
[1771616347986,9.3713021,84.75,84.711,9.58527642]
[1771616348895,3.55837794,84.76,84.711,9.58527642]
[1771616348896,19.9941021,84.749,84.711,9.58527642]
[1771616350092,14.18753539,84.76,84.715,9.55348024]
[1771616350287,10.6214,84.76,84.721,9.55348024]
[1771616350491,9.3713021,84.776,84.721,9.55348024]
[1771616350694,9.3713021,84.776,84.73,3.56613539]
[1771616350999,9.3713021,84.776,84.731,9.55348024]
[1771616351388,3.56613539,84.78,84.731,9.55348024]
[1771616351698,3.56613539,84.8,84.751,9.55348024]
[1771616352397,12.93743749,84.8,84.751,9.55348024]
[1771616352599,9.3713021,84.8,84.751,9.55348024]
[1771616353289,21.26166058,84.8,84.751,9.55348024]
[1771616353488,9.3713021,84.8,84.751,9.55348024]
[1771616353700,19.9878021,84.8,84.751,9.55348024]
[1771616353887,3.56613539,84.81,84.751,9.55348024]
[1771616354293,9.3713021,84.812,84.761,9.55348024]
[1771616354493,9.3713021,84.812,84.763,9.55348024]
[1771616354903,10.95598435,84.862,84.726,14.51029912]
[1771616354904,3.56613539,84.83,84.781,9.55348024]
[1771616355091,9.3713021,84.829,84.781,9.55348024]
[1771616355703,9.3713021,84.824,84.781,9.55348024]
[1771616357201,9.3713021,84.815,84.766,9.55348024]
[1771616358707,19.9859021,84.814,84.766,9.55348024]
[1771616359110,9.3713021,84.813,84.766,9.55348024]
[1771616360010,9.3713021,84.807,84.766,9.55348024]
[1771616363412,9.3713021,84.807,84.715,21.91547678]
[1771616363413,3.56613539,84.79,84.754,9.55348024]
[1771616363717,9.3713021,84.798,84.754,9.55348024]
[1771616365818,10.6176,84.79,84.754,9.55348024]
[1771616366112,9.3713021,84.798,84.754,9.55348024]
[1771616367815,9.3713021,84.797,84.754,9.55348024]
[1771616368716,10.6169,84.796,84.754,9.55348024]
[1771616369610,19.9882021,84.796,84.754,9.55348024]
[1771616370619,9.3713021,84.791,84.741,9.55348024]
[1771616370820,9.3713021,84.779,84.741,9.55348024]
[1771616372016,9.3713021,84.779,84.729,9.55348024]
[1771616372217,9.3713021,84.779,84.73,13.11961563]
[1771616372414,9.3713021,84.779,84.731,9.55348024]
[1771616372817,10.62,84.771,84.731,9.55348024]
[1771616373017,9.3713021,84.77,84.731,9.55348024]
[1771616375122,9.3713021,84.779,84.731,9.55348024]
[1771616376123,10.6199,84.772,84.731,9.55348024]
[1771616376525,19.9912021,84.772,84.731,9.55348024]
[1771616376722,3.56613539,84.76,84.713,9.55348024]
[1771616377024,9.3713021,84.759,84.713,9.55348024]
[1771616377817,19.9928021,84.759,84.713,9.55348024]
[1771616378022,9.18565825,84.758,84.713,9.55348024]
[1771616378220,9.18565825,84.749,84.701,9.79056402]
[1771616379726,19.80895825,84.745,84.701,9.79056402]
[1771616379923,9.18565825,84.739,84.688,9.79056402]
[1771616380126,9.18565825,84.729,84.688,9.79056402]
[1771616381726,19.81095825,84.729,84.688,9.79056402]
[1771616382023,9.18565825,84.751,84.701,9.79056402]
[1771616383728,9.18565825,84.751,84.704,9.79056402]
[1771616386028,9.18565825,84.749,84.704,9.79056402]
[1771616386328,9.18565825,84.719,84.668,9.79056402]
[1771616386528,9.18565825,84.707,84.651,9.79056402]
[1771616387128,12.75179364,84.72,84.661,9.79056402]
[1771616387629,12.75179364,84.72,84.671,9.79056402]
[1771616388832,10.6266,84.719,84.671,9.79056402]
[1771616389330,3.56613539,84.73,84.674,9.79056402]
[1771616389523,3.56613539,84.73,84.642,21.2722]
[1771616389524,9.18565825,84.733,84.69,3.56613539]
[1771616389723,9.18565825,84.733,84.681,9.79056402]
[1771616390028,9.18565825,84.724,84.67,3.56613539]
[1771616390328,9.18565825,84.724,84.671,9.79056402]
[1771616391730,19.81185825,84.722,84.673,9.79056402]
[1771616392433,19.81185825,84.722,84.642,21.2722]
[1771616392434,9.18565825,84.722,84.681,9.79056402]
[1771616393138,9.18565825,84.719,84.66,3.56613539]
[1771616393435,9.18565825,84.709,84.655,9.79056402]
[1771616394834,10.6288,84.701,84.655,9.79056402]
[1771616396330,3.56613539,84.71,84.655,9.79056402]
[1771616396331,9.18565825,84.696,84.655,9.79056402]
[1771616396534,9.18565825,84.696,84.641,9.79056402]
[1771616396734,9.18565825,84.689,84.641,9.79056402]
[1771616396930,10.6313,84.681,84.641,9.79056402]
[1771616400138,10.6305,84.688,84.642,10.636]
[1771616400334,10.6305,84.688,84.643,9.79056402]
[1771616400944,19.81615825,84.688,84.643,9.79056402]
[1771616401345,9.18565825,84.687,84.643,9.79056402]
[1771616401549,9.18565825,84.682,84.643,9.79056402]
[1771616401741,9.18565825,84.682,84.631,9.79056402]
[1771616402343,9.18565825,84.673,84.631,9.79056402]
[1771616403247,9.18565825,84.672,84.631,9.79056402]
[1771616403643,11.86007437,84.696,84.61,3.56613539]
[1771616403644,9.18565825,84.656,84.61,3.56613539]
[1771616404048,9.18565825,84.656,84.611,9.79056402]
[1771616404547,11.86007437,84.696,84.631,9.79056402]
[1771616404548,9.18565825,84.684,84.631,9.79056402]
[1771616404750,9.18565825,84.684,84.641,9.79056402]
[1771616405145,9.18565825,84.684,84.642,10.6361]
[1771616405341,3.56613539,84.71,84.661,9.79056402]
[1771616405541,12.75179364,84.73,84.671,9.79056402]
[1771616405852,9.18565825,84.729,84.671,9.79056402]
[1771616406254,9.18565825,84.729,84.615,35.43]
[1771616406255,9.18565825,84.725,84.68,3.56613539]
[1771616406443,10.83965815,84.786,84.62,21.2779]
[1771616406444,9.18565825,84.739,84.69,3.56613539]
[1771616406648,9.18565825,84.739,84.681,9.79056402]
[1771616406649,9.18565825,84.757,84.701,9.79056402]
[1771616406948,20.01848195,84.746,84.701,9.79056402]
[1771616407145,21.2377,84.781,84.701,9.79056402]
[1771616407146,9.39528195,84.745,84.701,9.79056402]
[1771616407743,9.48628195,84.743,84.69,3.56613539]
[1771616407947,9.48628195,84.743,84.7,3.56613539]
[1771616408454,9.48628195,84.743,84.636,14.62366162]
[1771616408455,9.48628195,84.758,84.72,3.56613539]
[1771616409649,9.48628195,84.756,84.7,3.56613539]
[1771616410548,9.48628195,84.751,84.7,3.56613539]
[1771616411048,9.48628195,84.749,84.696,9.50688409]
[1771616412056,11.55020952,84.765,84.68,3.56713606]
[1771616412057,3.56713606,84.74,84.68,3.56713606]
[1771616412254,9.48628195,84.729,84.67,3.56713606]
[1771616412551,9.48628195,84.729,84.663,9.50688409]
[1771616412552,9.48628195,84.719,84.663,9.50688409]
[1771616413757,3.56713606,84.71,84.663,9.50688409]
[1771616414052,21.2433,84.758,84.663,9.50688409]
[1771616414053,9.48628195,84.716,84.663,9.50688409]
[1771616414655,9.48628195,84.702,84.648,9.50688409]
[1771616415456,9.48628195,84.702,84.651,9.50688409]
[1771616416355,9.48628195,84.702,84.653,9.50688409]
[1771616418154,9.48628195,84.735,84.656,9.50688409]
[1771616418558,10.6269,84.716,84.665,9.50688409]
[1771616420660,10.6269,84.716,84.666,10.6331]
[1771616420861,10.6269,84.716,84.667,9.50688409]
[1771616421757,10.6269,84.716,84.669,9.50688409]
[1771616421958,9.48628195,84.721,84.669,9.50688409]
[1771616422655,9.48628195,84.721,84.671,9.50688409]
[1771616423363,10.6265,84.72,84.674,9.50688409]
[1771616423564,9.48628195,84.721,84.674,9.50688409]
[1771616424753,20.11248195,84.721,84.674,9.50688409]
[1771616425561,9.48628195,84.717,84.66,9.50688409]
[1771616426761,20.11348195,84.714,84.66,9.50688409]
[1771616427263,9.48628195,84.713,84.66,9.50688409]
[1771616428567,9.56236952,84.73,84.65,10.6351]
[1771616428568,9.48628195,84.701,84.65,10.6351]
[1771616428762,9.48628195,84.701,84.651,9.50688409]
[1771616430765,10.6289,84.7,84.651,9.50688409]
[1771616431166,9.48628195,84.729,84.655,9.50688409]
[1771616431561,10.6271,84.715,84.665,9.50688409]
[1771616431765,9.48628195,84.716,84.665,9.50688409]
[1771616432670,10.6278,84.709,84.665,9.50688409]
[1771616434877,20.11318195,84.716,84.667,9.50688409]
[1771616435175,20.11318195,84.716,84.67,3.5693967]
[1771616435676,9.48628195,84.703,84.651,9.50688409]
[1771616436081,10.629,84.699,84.651,20.14188409]
[1771616436383,10.629,84.699,84.652,9.50688409]
[1771616437982,10.629,84.699,84.65,3.5693967]
[1771616437983,10.629,84.699,84.655,9.33406749]
[1771616438283,10.629,84.699,84.66,12.90346419]
[1771616439280,10.629,84.699,84.66,9.33406749]
[1771616439880,9.48628195,84.703,84.661,9.33406749]
[1771616440281,10.6287,84.702,84.661,9.33406749]
[1771616440681,9.48455759,84.719,84.661,9.33406749]
[1771616441185,9.48455759,84.729,84.67,3.5693967]
[1771616441379,9.48455759,84.729,84.665,9.33406749]
[1771616441587,20.11235759,84.709,84.665,9.33406749]
[1771616442085,9.48455759,84.726,84.671,9.33406749]
[1771616442682,9.48455759,84.726,84.679,9.33406749]
[1771616444081,9.48455759,84.739,84.691,9.33406749]
[1771616444487,9.48455759,84.752,84.706,10.6281]
[1771616444782,9.48455759,84.739,84.68,3.5693967]
[1771616445186,9.48455759,84.739,84.681,9.33406749]
[1771616446886,9.48455759,84.737,84.685,10.6307]
[1771616447685,3.5693967,84.73,84.685,10.6307]
[1771616447882,9.48455759,84.752,84.71,3.5693967]
[1771616448083,9.48455759,84.739,84.678,9.33406749]
[1771616448283,9.48455759,84.729,84.68,3.5693967]
[1771616449683,9.48455759,84.729,84.681,10.6312]
[1771616450184,9.48455759,84.727,84.681,10.6312]
[1771616450389,9.48455759,84.727,84.674,10.6321]
[1771616450390,3.5693967,84.72,84.674,10.6321]
[1771616450587,9.48455759,84.719,84.674,10.6321]
[1771616451083,9.48455759,84.719,84.651,21.85305759]
[1771616451084,9.48455759,84.736,84.692,9.33406749]
[1771616452185,13.05395429,84.76,84.704,9.33406749]
[1771616452492,9.48455759,84.779,84.721,9.33406749]
[1771616452790,9.48455759,84.779,84.73,3.5693967]
[1771616453587,9.48455759,84.779,84.721,9.33406749]
[1771616453893,10.6199,84.772,84.723,9.33406749]
[1771616455888,3.5693967,84.76,84.704,9.33406749]
[1771616456188,9.48455759,84.769,84.711,9.33406749]
[1771616457693,10.6216,84.759,84.711,9.33406749]
[1771616460284,9.48455759,84.766,84.712,10.6273]
[1771616460493,9.48455759,84.766,84.721,9.33406749]
[1771616460686,11.86950608,84.777,84.73,3.5693967]
[1771616460883,10.6197,84.773,84.73,12.90346419]
[1771616461688,10.6197,84.773,84.731,9.33406749]
[1771616462284,9.48455759,84.78,84.731,9.33406749]
[1771616463089,10.6193,84.777,84.731,9.33406749]
[1771616463901,9.48455759,84.78,84.731,9.33406749]
[1771616464093,10.6184,84.784,84.731,9.33406749]
[1771616465392,3.5693967,84.79,84.73,3.5693967]
[1771616465393,9.48455759,84.79,84.739,9.33406749]
[1771616465595,9.48455759,84.79,84.741,9.33406749]
[1771616466694,9.48028778,84.786,84.73,12.91448601]
[1771616466894,9.48028778,84.786,84.731,9.34508931]
[1771616467800,10.6189,84.78,84.731,9.34508931]
[1771616468501,10.6197,84.774,84.731,9.34508931]
[1771616469099,10.6197,84.774,84.687,21.2609]
[1771616469100,8.84313854,84.769,84.71,3.5693967]
[1771616469804,8.84313854,84.769,84.713,9.71200007]
[1771616470399,10.6217,84.758,84.715,9.71200007]
[1771616470601,8.84313854,84.759,84.71,3.5693967]
[1771616471101,10.6218,84.757,84.711,9.71200007]
[1771616471501,8.84313854,84.784,84.731,9.71200007]
[1771616471698,8.84313854,84.784,84.74,3.5693967]
[1771616472797,10.6193,84.777,84.74,3.5693967]
[1771616473392,8.84313854,84.784,84.75,3.5693967]
[1771616473799,8.84313854,84.801,84.75,3.5693967]
[1771616474008,8.84313854,84.801,84.75,3.56220402]
[1771616474802,10.6174,84.792,84.75,3.56220402]
[1771616474998,10.6174,84.792,84.751,9.71200007]
[1771616475910,10.6174,84.792,84.75,3.56220402]
[1771616475911,8.84313854,84.801,84.753,9.71200007]
[1771616477105,10.6164,84.8,84.753,9.71200007]
[1771616478305,19.45953854,84.8,84.753,9.71200007]
[1771616479103,10.6171,84.794,84.753,9.71200007]
[1771616480602,19.45953854,84.8,84.753,9.71200007]
[1771616481698,19.45973854,84.798,84.753,9.71200007]
[1771616482700,10.6174,84.792,84.753,9.71200007]
[1771616482897,8.84313854,84.791,84.74,13.27420409]
[1771616483099,8.84313854,84.791,84.741,9.71200007]
[1771616484800,10.6181,84.786,84.741,9.71200007]
[1771616485709,10.6181,84.786,84.744,9.71200007]
[1771616486203,8.84313854,84.805,84.76,3.56220402]
[1771616486406,8.84313854,84.819,84.771,9.71200007]
[1771616487510,10.6145,84.815,84.774,9.71200007]
[1771616487704,8.84313854,84.819,84.774,9.71200007]
[1771616488508,3.56220402,84.81,84.766,20.33250007]
[1771616488707,8.84313854,84.809,84.766,9.71200007]
[1771616489503,3.56220402,84.79,84.737,9.71200007]
[1771616489706,8.84313854,84.789,84.737,9.71200007]
[1771616489906,10.6181,84.787,84.739,10.6239]
[1771616490110,8.84313854,84.789,84.741,9.71200007]
[1771616490707,8.84313854,84.789,84.745,9.71200007]
[1771616490911,8.84313854,84.769,84.724,9.71200007]
[1771616491110,35.43,84.808,84.74,3.56220402]
[1771616491408,35.43,84.808,84.693,165.3513]
[1771616491409,8.84313854,84.809,84.751,9.71200007]
[1771616491813,10.6165,84.799,84.751,9.71200007]
[1771616492708,8.84313854,84.807,84.76,3.56220402]
[1771616492905,3.56220402,84.82,84.761,9.71200007]
[1771616493106,12.40534256,84.82,84.761,9.71200007]
[1771616493411,8.84313854,84.819,84.761,9.71200007]
[1771616493814,10.6144,84.816,84.763,9.71200007]
[1771616494116,8.84313854,84.819,84.771,9.71200007]
[1771616494707,21.2166,84.865,84.77,3.56220402]
[1771616494708,8.84313854,84.833,84.78,9.71200007]
[1771616495005,8.84313854,84.833,84.781,9.71200007]
[1771616495717,19.45543854,84.833,84.782,9.71200007]
[1771616496818,19.45543854,84.833,84.787,9.71200007]
[1771616497117,10.6113,84.841,84.791,9.71200007]
[1771616498019,10.6113,84.841,84.8,12.61624181]
[1771616499213,10.6113,84.841,84.8,9.05403779]
[1771616499918,8.84313854,84.846,84.8,9.05403779]
[1771616501820,9.16597821,84.843,84.8,9.05403779]
[1771616504323,9.16597821,84.843,84.801,9.05403779]
[1771616504713,9.16597821,84.843,84.81,3.56220402]
[1771616504918,10.6096,84.855,84.81,3.56220402]
[1771616504919,19.77557821,84.855,84.81,12.61624181]
[1771616505121,19.77557821,84.855,84.811,9.05403779]
[1771616506220,10.6103,84.849,84.811,9.05403779]
[1771616510322,9.16597821,84.854,84.811,9.05403779]
[1771616510920,10.6107,84.845,84.811,9.05403779]
[1771616512730,9.16597821,84.851,84.811,9.05403779]
[1771616513127,9.16597821,84.849,84.799,9.05403779]
[1771616513328,9.16597821,84.838,84.799,9.05403779]
[1771616513824,9.16597821,84.86,84.801,9.05403779]
[1771616514026,9.16597821,84.86,84.811,9.05403779]
[1771616514925,9.16597821,84.86,84.813,9.05403779]
[1771616515130,9.16597821,84.872,84.821,9.05403779]
[1771616516233,9.16597821,84.872,84.831,9.05403779]
[1771616516234,10.6076,84.871,84.831,9.05403779]
[1771616517434,9.16597821,84.872,84.831,9.05403779]
[1771616517732,10.6066,84.878,84.833,9.05403779]
[1771616519432,10.6073,84.872,84.833,9.05403779]
[1771616519729,9.16597821,84.871,84.833,9.05403779]
[1771616520032,9.16597821,84.859,84.82,9.05403779]
[1771616522128,10.608,84.867,84.821,9.05403779]
[1771616522732,10.6088,84.86,84.821,9.05403779]
[1771616523833,10.6096,84.854,84.821,9.05403779]
[1771616524034,9.16597821,84.853,84.808,9.05403779]
[1771616524226,9.16597821,84.849,84.8,3.56220402]
[1771616525835,9.16597821,84.849,84.8,12.61624181]
[1771616525836,10.6109,84.844,84.8,12.61624181]
[1771616526136,10.6109,84.844,84.801,9.05403779]
[1771616529236,9.16597821,84.849,84.801,9.05403779]
[1771616530333,9.16597821,84.849,84.8,3.56220402]
[1771616530334,9.16597821,84.849,84.803,19.64583561]
[1771616534541,8.99240225,84.849,84.791,9.03003561]
[1771616534838,8.99240225,84.839,84.791,9.03003561]
[1771616535034,8.99240225,84.839,84.798,10.6165]